[Event "Titled Tuesday Blitz February 28 Early 2023"]
[White "Andreikin, Dmitry"]
[Black "Drygalov, Andrey"]
[WhiteFideId "4158814"]
[BlackFideId "24171735"]
[WhiteElo "2736"]
[BlackElo "2471"]
[Result "1/2-1/2"]
[Round "11"]
[TimeControl "180+2"]
[Date "2023.02.28"]
[WhiteClock "0:00:09"]
[BlackClock "0:00:11"]

1. e4 {[%clk 0:03:00]}  c5 {[%clk 0:03:00]} 2. Na3 {[%clk 0:02:51]}  e6 {[%clk 0:02:57]} 3. Nf3 {[%clk 0:02:48]}  a6 {[%clk 0:02:54]} 4. c3 {[%clk 0:02:47]}  Nf6 {[%clk 0:02:53]} 5. e5 {[%clk 0:02:47]}  Nd5 {[%clk 0:02:53]} 6. Nc2 {[%clk 0:02:46]}  d6 {[%clk 0:02:53]} 7. d4 {[%clk 0:02:45]}  cxd4 {[%clk 0:02:48]} 8. Ncxd4 {[%clk 0:02:46]}  Qc7 {[%clk 0:02:42]} 9. exd6 {[%clk 0:02:40]}  Bxd6 {[%clk 0:02:41]} 10. Bd3 {[%clk 0:02:41]}  O-O {[%clk 0:02:38]} 11. O-O {[%clk 0:02:41]}  h6 {[%clk 0:02:33]} 12. Re1 {[%clk 0:02:11]}  Nd7 {[%clk 0:02:27]} 13. Bc2 {[%clk 0:02:10]}  N7f6 {[%clk 0:02:17]} 14. Qe2 {[%clk 0:02:06]}  b5 {[%clk 0:02:05]} 15. Ne5 {[%clk 0:01:55]}  Bb7 {[%clk 0:02:04]} 16. Bd2 {[%clk 0:01:44]}  Rac8 {[%clk 0:02:03]} 17. Rac1 {[%clk 0:01:42]}  Bxe5 {[%clk 0:01:53]} 18. Qxe5 {[%clk 0:01:41]}  Qxe5 {[%clk 0:01:54]} 19. Rxe5 {[%clk 0:01:42]}  Nb6 {[%clk 0:01:54]} 20. Bb3 {[%clk 0:01:32]}  Bd5 {[%clk 0:01:44]} 21. Re2 {[%clk 0:01:26]}  Nc4 {[%clk 0:01:40]} 22. Bf4 {[%clk 0:01:18]}  Rfe8 {[%clk 0:01:33]} 23. Rce1 {[%clk 0:01:15]}  Na5 {[%clk 0:01:07]} 24. Bc2 {[%clk 0:01:00]}  Nc4 {[%clk 0:01:02]} 25. Bb1 {[%clk 0:00:56]}  b4 {[%clk 0:00:35]} 26. cxb4 {[%clk 0:00:43]}  e5 {[%clk 0:00:34]} 27. Nf5 {[%clk 0:00:44]}  exf4 {[%clk 0:00:31]} 28. Rxe8+ {[%clk 0:00:43]}  Rxe8 {[%clk 0:00:29]} 29. Rxe8+ {[%clk 0:00:43]}  Nxe8 {[%clk 0:00:29]} 30. Ne7+ {[%clk 0:00:43]}  Kf8 {[%clk 0:00:30]} 31. Nxd5 {[%clk 0:00:44]}  Nxb2 {[%clk 0:00:30]} 32. Nxf4 {[%clk 0:00:42]}  Ke7 {[%clk 0:00:30]} 33. Kf1 {[%clk 0:00:36]}  Kd6 {[%clk 0:00:30]} 34. Ke2 {[%clk 0:00:36]}  Nc7 {[%clk 0:00:27]} 35. Nd3 {[%clk 0:00:32]}  Nc4 {[%clk 0:00:27]} 36. Nc5 {[%clk 0:00:30]}  Ne5 {[%clk 0:00:20]} 37. a3 {[%clk 0:00:25]}  Nc4 {[%clk 0:00:18]} 38. Bd3 {[%clk 0:00:20]}  Nxa3 {[%clk 0:00:16]} 39. Nxa6 {[%clk 0:00:21]}  Nd5 {[%clk 0:00:16]} 40. Kd2 {[%clk 0:00:18]}  Ke5 {[%clk 0:00:16]} 41. b5 {[%clk 0:00:10]}  Kd4 {[%clk 0:00:16]} 42. Nb8 {[%clk 0:00:10]}  Nc4+ {[%clk 0:00:15]} 43. Bxc4 {[%clk 0:00:09]}  Kxc4 {[%clk 0:00:15]} 44. Nc6 {[%clk 0:00:09]}  Kxb5 {[%clk 0:00:14]} 45. Nd8 {[%clk 0:00:09]}  f6 {[%clk 0:00:11]} 46. Kd3 {[%clk 0:00:10]}  Kc5 {[%clk 0:00:09]} 47. Ne6+ {[%clk 0:00:09]}  Kd6 {[%clk 0:00:09]} 48. Nxg7 {[%clk 0:00:10]}  Nf4+ {[%clk 0:00:09]} 49. Ke4 {[%clk 0:00:10]}  Nxg2 {[%clk 0:00:10]} 50. Nf5+ {[%clk 0:00:11]}  Ke6 {[%clk 0:00:10]} 51. Nxh6 {[%clk 0:00:11]}  Nh4 {[%clk 0:00:08]} 52. Kf4 {[%clk 0:00:11]}  Ng6+ {[%clk 0:00:08]} 53. Kg4 {[%clk 0:00:12]}  Ne5+ {[%clk 0:00:08]} 54. Kg3 {[%clk 0:00:11]}  f5 {[%clk 0:00:06]} 55. Kf4 {[%clk 0:00:07]}  Nd3+ {[%clk 0:00:06]} 56. Ke3 {[%clk 0:00:08]}  Ne5 {[%clk 0:00:07]} 57. f4 {[%clk 0:00:06]}  Ng6 {[%clk 0:00:06]} 58. Kf3 {[%clk 0:00:06]}  Kf6 {[%clk 0:00:07]} 59. Kg3 {[%clk 0:00:07]}  Ne7 {[%clk 0:00:07]} 60. h4 {[%clk 0:00:07]}  Kg6 {[%clk 0:00:07]} 61. Ng4 {[%clk 0:00:07]}  fxg4 {[%clk 0:00:07]} 62. Kxg4 {[%clk 0:00:08]}  Nf5 {[%clk 0:00:08]} 63. h5+ {[%clk 0:00:08]}  Kf6 {[%clk 0:00:08]} 64. h6 {[%clk 0:00:09]}  Nxh6+ {[%clk 0:00:09]} 65. Kh5 {[%clk 0:00:09]}  Kf5 {[%clk 0:00:10]} 66. Kxh6 {[%clk 0:00:09]}  Kxf4 {[%clk 0:00:11]} 1/2-1/2


[Site "https://www.chess.com"]

[Event "Titled Tuesday Blitz February 28 Early 2023"]
[White "Bharath Subramaniyam H"]
[Black "Deac, Bogdan-Daniel"]
[WhiteFideId "46634827"]
[BlackFideId "1226380"]
[WhiteElo "2395"]
[BlackElo "2649"]
[Result "0-1"]
[Round "11"]
[TimeControl "180+2"]
[Date "2023.02.28"]
[WhiteClock "0:00:02"]
[BlackClock "0:00:02"]

1. e4 {[%clk 0:02:54]}  c6 {[%clk 0:02:59]} 2. Nf3 {[%clk 0:02:54]}  d5 {[%clk 0:03:00]} 3. Nc3 {[%clk 0:02:55]}  dxe4 {[%clk 0:02:58]} 4. Nxe4 {[%clk 0:02:54]}  Nf6 {[%clk 0:02:59]} 5. Qe2 {[%clk 0:02:54]}  Na6 {[%clk 0:02:59]} 6. d3 {[%clk 0:02:47]}  Nxe4 {[%clk 0:02:53]} 7. dxe4 {[%clk 0:02:46]}  e5 {[%clk 0:02:53]} 8. g3 {[%clk 0:02:43]}  Be7 {[%clk 0:02:42]} 9. Bg2 {[%clk 0:02:43]}  O-O {[%clk 0:02:42]} 10. O-O {[%clk 0:02:44]}  Qc7 {[%clk 0:02:42]} 11. b3 {[%clk 0:02:38]}  Nc5 {[%clk 0:02:41]} 12. Bb2 {[%clk 0:02:37]}  Bf6 {[%clk 0:02:34]} 13. h3 {[%clk 0:02:30]}  b6 {[%clk 0:02:31]} 14. Rfd1 {[%clk 0:02:23]}  Re8 {[%clk 0:02:28]} 15. Nh2 {[%clk 0:02:22]}  g6 {[%clk 0:02:26]} 16. a4 {[%clk 0:02:11]}  a5 {[%clk 0:02:25]} 17. Qe3 {[%clk 0:02:10]}  Bg7 {[%clk 0:02:19]} 18. h4 {[%clk 0:02:04]}  h5 {[%clk 0:02:19]} 19. Rd2 {[%clk 0:02:03]}  Ne6 {[%clk 0:02:15]} 20. Nf3 {[%clk 0:02:01]}  c5 {[%clk 0:02:14]} 21. c3 {[%clk 0:01:24]}  c4 {[%clk 0:01:46]} 22. bxc4 {[%clk 0:01:09]}  Ba6 {[%clk 0:01:43]} 23. Rad1 {[%clk 0:01:05]}  Bxc4 {[%clk 0:01:41]} 24. Rd7 {[%clk 0:01:02]}  Qc5 {[%clk 0:01:41]} 25. Qc1 {[%clk 0:00:54]}  Bb3 {[%clk 0:01:34]} 26. Ba3 {[%clk 0:00:42]}  Qc8 {[%clk 0:01:29]} 27. R1d3 {[%clk 0:00:28]}  Bxa4 {[%clk 0:01:23]} 28. R7d6 {[%clk 0:00:28]}  Qc7 {[%clk 0:01:01]} 29. Bh3 {[%clk 0:00:25]}  Nc5 {[%clk 0:00:59]} 30. Bxc5 {[%clk 0:00:25]}  Qxc5 {[%clk 0:00:59]} 31. Bd7 {[%clk 0:00:23]}  Bxd7 {[%clk 0:00:59]} 32. Rxd7 {[%clk 0:00:23]}  a4 {[%clk 0:00:48]} 33. Ng5 {[%clk 0:00:23]}  Rf8 {[%clk 0:00:33]} 34. R3d5 {[%clk 0:00:19]}  Qc8 {[%clk 0:00:25]} 35. Qa3 {[%clk 0:00:19]}  Bf6 {[%clk 0:00:21]} 36. Nf3 {[%clk 0:00:18]}  Qc4 {[%clk 0:00:18]} 37. R5d6 {[%clk 0:00:16]}  Bg7 {[%clk 0:00:13]} 38. Nd2 {[%clk 0:00:16]}  Qe2 {[%clk 0:00:12]} 39. Rxb6 {[%clk 0:00:15]}  Qd1+ {[%clk 0:00:06]} 40. Kg2 {[%clk 0:00:14]}  Bh6 {[%clk 0:00:06]} 41. Rb1 {[%clk 0:00:14]}  Qc2 {[%clk 0:00:04]} 42. Rb2 {[%clk 0:00:14]}  Qc1 {[%clk 0:00:04]} 43. Nc4 {[%clk 0:00:12]}  Rab8 {[%clk 0:00:03]} 44. Ra2 {[%clk 0:00:10]}  Qb1 {[%clk 0:00:03]} 45. Nd6 {[%clk 0:00:09]}  Ra8 {[%clk 0:00:01]} 46. c4 {[%clk 0:00:07]}  Qb3 {[%clk 0:00:02]} 47. c5 {[%clk 0:00:07]}  Qe6 {[%clk 0:00:01]} 48. c6 {[%clk 0:00:07]}  Bc1 {[%clk 0:00:01]} 49. Qxc1 {[%clk 0:00:06]}  Qxa2 {[%clk 0:00:01]} 50. c7 {[%clk 0:00:06]}  Qe6 {[%clk 0:00:02]} 51. Qc6 {[%clk 0:00:05]}  a3 {[%clk 0:00:03]} 52. Rxf7 {[%clk 0:00:02]}  a2 {[%clk 0:00:01]} 53. Rxf8+ {[%clk 0:00:02]}  Rxf8 {[%clk 0:00:02]} 54. Qa6 {[%clk 0:00:02]}  Qf6 {[%clk 0:00:02]} 0-1


[Site "https://www.chess.com"]

[Event "Titled Tuesday Blitz February 28 Early 2023"]
[White "Mikhailovsky, Vladimir"]
[Black "Timofeev, Artyom"]
[WhiteFideId "34105414"]
[BlackFideId "4140419"]
[WhiteElo "2282"]
[BlackElo "2586"]
[Result "1-0"]
[Round "11"]
[TimeControl "180+2"]
[Date "2023.02.28"]
[WhiteClock "0:00:03"]
[BlackClock "0:00:07"]

1. e4 {[%clk 0:03:00]}  c5 {[%clk 0:02:59]} 2. c3 {[%clk 0:03:00]}  d6 {[%clk 0:02:56]} 3. d4 {[%clk 0:03:00]}  Qc7 {[%clk 0:02:56]} 4. Nf3 {[%clk 0:02:56]}  g6 {[%clk 0:02:55]} 5. e5 {[%clk 0:02:46]}  Bg7 {[%clk 0:02:54]} 6. Bb5+ {[%clk 0:02:44]}  Bd7 {[%clk 0:02:46]} 7. Bxd7+ {[%clk 0:02:40]}  Qxd7 {[%clk 0:02:43]} 8. O-O {[%clk 0:01:53]}  cxd4 {[%clk 0:02:34]} 9. cxd4 {[%clk 0:01:47]}  dxe5 {[%clk 0:02:33]} 10. Nxe5 {[%clk 0:01:24]}  Bxe5 {[%clk 0:02:33]} 11. dxe5 {[%clk 0:01:24]}  Qxd1 {[%clk 0:02:25]} 12. Rxd1 {[%clk 0:01:25]}  Nc6 {[%clk 0:02:26]} 13. Bf4 {[%clk 0:00:41]}  f6 {[%clk 0:02:25]} 14. exf6 {[%clk 0:00:32]}  Nxf6 {[%clk 0:02:24]} 15. Nc3 {[%clk 0:00:33]}  Kf7 {[%clk 0:02:25]} 16. Rd2 {[%clk 0:00:28]}  Rad8 {[%clk 0:02:24]} 17. Rad1 {[%clk 0:00:28]}  Rxd2 {[%clk 0:02:23]} 18. Rxd2 {[%clk 0:00:29]}  Rc8 {[%clk 0:02:23]} 19. f3 {[%clk 0:00:28]}  Na5 {[%clk 0:02:21]} 20. Be5 {[%clk 0:00:21]}  Nc4 {[%clk 0:02:19]} 21. Re2 {[%clk 0:00:21]}  Nd7 {[%clk 0:02:16]} 22. Bd4 {[%clk 0:00:19]}  a6 {[%clk 0:02:08]} 23. Nd5 {[%clk 0:00:15]}  e5 {[%clk 0:02:05]} 24. Bc3 {[%clk 0:00:15]}  Rc5 {[%clk 0:02:02]} 25. Ne3 {[%clk 0:00:15]}  Nxe3 {[%clk 0:01:51]} 26. Rxe3 {[%clk 0:00:16]}  Rd5 {[%clk 0:01:52]} 27. Kf2 {[%clk 0:00:16]}  g5 {[%clk 0:01:52]} 28. Ke2 {[%clk 0:00:15]}  Ke6 {[%clk 0:01:52]} 29. Rd3 {[%clk 0:00:15]}  Rc5 {[%clk 0:01:48]} 30. Bd2 {[%clk 0:00:12]}  h6 {[%clk 0:01:42]} 31. Rc3 {[%clk 0:00:11]}  Rb5 {[%clk 0:01:41]} 32. b3 {[%clk 0:00:10]}  Nf6 {[%clk 0:01:23]} 33. Rc7 {[%clk 0:00:08]}  e4 {[%clk 0:01:23]} 34. Bc3 {[%clk 0:00:06]}  exf3+ {[%clk 0:01:22]} 35. Kxf3 {[%clk 0:00:05]}  Nd5 {[%clk 0:01:22]} 36. Rc4 {[%clk 0:00:06]}  Rb6 {[%clk 0:01:18]} 37. Bd2 {[%clk 0:00:06]}  Rd6 {[%clk 0:01:17]} 38. Re4+ {[%clk 0:00:06]}  Kf7 {[%clk 0:01:17]} 39. Rd4 {[%clk 0:00:07]}  Ke6 {[%clk 0:01:16]} 40. h4 {[%clk 0:00:07]}  Rc6 {[%clk 0:01:07]} 41. hxg5 {[%clk 0:00:07]}  hxg5 {[%clk 0:01:08]} 42. Bxg5 {[%clk 0:00:07]}  Rc2 {[%clk 0:01:08]} 43. Re4+ {[%clk 0:00:05]}  Kd6 {[%clk 0:01:00]} 44. Re2 {[%clk 0:00:03]}  Rc3+ {[%clk 0:00:57]} 45. Kg4 {[%clk 0:00:03]}  b5 {[%clk 0:00:51]} 46. Bf4+ {[%clk 0:00:03]}  Kd7 {[%clk 0:00:49]} 47. Be5 {[%clk 0:00:03]}  Rc1 {[%clk 0:00:47]} 48. Kf5 {[%clk 0:00:04]}  Rf1+ {[%clk 0:00:45]} 49. Ke4 {[%clk 0:00:04]}  Nb4 {[%clk 0:00:44]} 50. g4 {[%clk 0:00:04]}  Rg1 {[%clk 0:00:44]} 51. Kf5 {[%clk 0:00:04]}  Nc6 {[%clk 0:00:43]} 52. Bf6 {[%clk 0:00:04]}  Nb4 {[%clk 0:00:20]} 53. g5 {[%clk 0:00:04]}  Nd5 {[%clk 0:00:20]} 54. Rd2 {[%clk 0:00:04]}  Kc6 {[%clk 0:00:20]} 55. Rc2+ {[%clk 0:00:04]}  Kd7 {[%clk 0:00:20]} 56. Rd2 {[%clk 0:00:03]}  Kc6 {[%clk 0:00:20]} 57. Kg6 {[%clk 0:00:02]}  Nf4+ {[%clk 0:00:19]} 58. Kf7 {[%clk 0:00:02]}  b4 {[%clk 0:00:18]} 59. Rf2 {[%clk 0:00:03]}  Nd3 {[%clk 0:00:18]} 60. Rf3 {[%clk 0:00:02]}  Ne1 {[%clk 0:00:08]} 61. Rf5 {[%clk 0:00:03]}  Ng2 {[%clk 0:00:07]} 62. g6 {[%clk 0:00:03]}  Ne3 {[%clk 0:00:07]} 63. Rf3 {[%clk 0:00:03]}  Nd5 {[%clk 0:00:07]} 64. g7 {[%clk 0:00:03]} 1-0


[Site "https://www.chess.com"]

[Event "Titled Tuesday Blitz February 28 Early 2023"]
[White "Livaic, Leon"]
[Black "Samunenkov, Ihor"]
[WhiteFideId "14531534"]
[BlackFideId "14187086"]
[WhiteElo "2509"]
[BlackElo "2457"]
[Result "1-0"]
[Round "11"]
[TimeControl "180+2"]
[Date "2023.02.28"]
[WhiteClock "0:00:29"]
[BlackClock "0:00:02"]

1. e4 {[%clk 0:02:55]}  c6 {[%clk 0:02:59]} 2. Bc4 {[%clk 0:02:51]}  d5 {[%clk 0:02:58]} 3. Bb3 {[%clk 0:02:52]}  dxe4 {[%clk 0:02:40]} 4. Qh5 {[%clk 0:02:52]}  g6 {[%clk 0:02:34]} 5. Qh4 {[%clk 0:02:51]}  Nf6 {[%clk 0:02:25]} 6. Nc3 {[%clk 0:02:50]}  Nbd7 {[%clk 0:01:58]} 7. Nxe4 {[%clk 0:02:48]}  Nxe4 {[%clk 0:01:59]} 8. Qxe4 {[%clk 0:02:48]}  Nf6 {[%clk 0:01:58]} 9. Qe2 {[%clk 0:02:47]}  Bg7 {[%clk 0:01:58]} 10. Nf3 {[%clk 0:02:47]}  O-O {[%clk 0:01:59]} 11. O-O {[%clk 0:02:46]}  c5 {[%clk 0:01:59]} 12. c3 {[%clk 0:02:37]}  Bg4 {[%clk 0:01:37]} 13. h3 {[%clk 0:02:34]}  Bxf3 {[%clk 0:01:36]} 14. Qxf3 {[%clk 0:02:34]}  Qc7 {[%clk 0:01:31]} 15. d3 {[%clk 0:02:33]}  Rad8 {[%clk 0:01:30]} 16. Bf4 {[%clk 0:02:33]}  Qc8 {[%clk 0:01:29]} 17. Rad1 {[%clk 0:02:33]}  b6 {[%clk 0:01:24]} 18. Rfe1 {[%clk 0:02:32]}  Rfe8 {[%clk 0:01:22]} 19. Ba4 {[%clk 0:02:31]}  Rf8 {[%clk 0:01:18]} 20. Rxe7 {[%clk 0:02:23]}  Nd5 {[%clk 0:01:14]} 21. Rxa7 {[%clk 0:02:20]}  Qf5 {[%clk 0:00:38]} 22. Bg3 {[%clk 0:02:01]}  Qxf3 {[%clk 0:00:31]} 23. gxf3 {[%clk 0:02:02]}  Bh6 {[%clk 0:00:32]} 24. Bb3 {[%clk 0:01:59]}  Nf4 {[%clk 0:00:32]} 25. Bxf4 {[%clk 0:01:44]}  Bxf4 {[%clk 0:00:33]} 26. Bc4 {[%clk 0:01:36]}  Rd6 {[%clk 0:00:20]} 27. Re1 {[%clk 0:01:33]}  Rf6 {[%clk 0:00:20]} 28. Kg2 {[%clk 0:01:33]}  Kg7 {[%clk 0:00:19]} 29. Ree7 {[%clk 0:01:33]}  Bc1 {[%clk 0:00:18]} 30. Re2 {[%clk 0:01:31]}  Rd8 {[%clk 0:00:18]} 31. a4 {[%clk 0:01:31]}  h5 {[%clk 0:00:17]} 32. a5 {[%clk 0:01:29]}  bxa5 {[%clk 0:00:15]} 33. Rxa5 {[%clk 0:01:29]}  Rb8 {[%clk 0:00:15]} 34. b3 {[%clk 0:01:15]}  Rc8 {[%clk 0:00:11]} 35. Ra7 {[%clk 0:01:13]}  Rd8 {[%clk 0:00:02]} 36. Rc7 {[%clk 0:01:08]}  Rf5 {[%clk 0:00:02]} 37. Rb7 {[%clk 0:00:56]}  Rf6 {[%clk 0:00:02]} 38. b4 {[%clk 0:00:56]}  cxb4 {[%clk 0:00:02]} 39. Rxb4 {[%clk 0:00:57]}  Bf4 {[%clk 0:00:01]} 40. Rb7 {[%clk 0:00:48]}  Rf8 {[%clk 0:00:02]} 41. Bd5 {[%clk 0:00:46]}  Bd6 {[%clk 0:00:02]} 42. d4 {[%clk 0:00:45]}  Rc8 {[%clk 0:00:02]} 43. c4 {[%clk 0:00:45]}  Rf4 {[%clk 0:00:02]} 44. Re4 {[%clk 0:00:45]}  Rf6 {[%clk 0:00:02]} 45. c5 {[%clk 0:00:44]}  Bf8 {[%clk 0:00:03]} 46. Rd7 {[%clk 0:00:34]}  Rf5 {[%clk 0:00:02]} 47. Bb7 {[%clk 0:00:30]}  Rb8 {[%clk 0:00:01]} 48. c6 {[%clk 0:00:30]}  Rg5+ {[%clk 0:00:01]} 49. Kf1 {[%clk 0:00:30]}  Ra5 {[%clk 0:00:01]} 50. c7 {[%clk 0:00:30]}  Rxb7 {[%clk 0:00:01]} 51. c8=Q {[%clk 0:00:30]}  Rb1+ {[%clk 0:00:02]} 52. Re1 {[%clk 0:00:29]} 1-0


[Site "https://www.chess.com"]

[Event "Titled Tuesday Blitz February 28 Early 2023"]
[White "Galchenko, Matvey"]
[Black "Diaz Perez, Michel Alejandro"]
[WhiteFideId "24175480"]
[BlackFideId "3517179"]
[WhiteElo "2404"]
[BlackElo "2333"]
[Result "1-0"]
[Round "11"]
[TimeControl "180+2"]
[Date "2023.02.28"]
[WhiteClock "0:00:53"]
[BlackClock "0:01:09"]

1. f4 {[%clk 0:03:00]}  Nf6 {[%clk 0:02:58]} 2. Nf3 {[%clk 0:03:00]}  d5 {[%clk 0:02:57]} 3. g3 {[%clk 0:03:00]}  g6 {[%clk 0:02:57]} 4. Bg2 {[%clk 0:03:01]}  Bg7 {[%clk 0:02:58]} 5. O-O {[%clk 0:03:01]}  O-O {[%clk 0:02:58]} 6. d3 {[%clk 0:03:02]}  c5 {[%clk 0:02:55]} 7. Nc3 {[%clk 0:03:03]}  Nc6 {[%clk 0:02:55]} 8. e4 {[%clk 0:03:02]}  dxe4 {[%clk 0:02:55]} 9. dxe4 {[%clk 0:03:03]}  Qxd1 {[%clk 0:02:47]} 10. Rxd1 {[%clk 0:03:04]}  Bg4 {[%clk 0:02:47]} 11. e5 {[%clk 0:03:04]}  Ne8 {[%clk 0:02:41]} 12. h3 {[%clk 0:03:05]}  Be6 {[%clk 0:02:34]} 13. Be3 {[%clk 0:03:04]}  Nb4 {[%clk 0:02:28]} 14. Bxc5 {[%clk 0:03:04]}  Na6 {[%clk 0:01:59]} 15. Bxe7 {[%clk 0:03:03]}  Nec7 {[%clk 0:01:59]} 16. Bxf8 {[%clk 0:03:02]}  Bxf8 {[%clk 0:02:00]} 17. Nd4 {[%clk 0:03:02]}  Bc5 {[%clk 0:01:55]} 18. Kh2 {[%clk 0:03:01]}  Rb8 {[%clk 0:01:51]} 19. Nxe6 {[%clk 0:02:58]}  Nxe6 {[%clk 0:01:52]} 20. Ne4 {[%clk 0:02:58]}  Bf8 {[%clk 0:01:51]} 21. Nf6+ {[%clk 0:02:58]}  Kg7 {[%clk 0:01:50]} 22. c3 {[%clk 0:02:59]}  Nac5 {[%clk 0:01:50]} 23. Rd2 {[%clk 0:02:58]}  Be7 {[%clk 0:01:50]} 24. Nd5 {[%clk 0:02:55]}  Bd8 {[%clk 0:01:50]} 25. Rad1 {[%clk 0:02:56]}  h5 {[%clk 0:01:49]} 26. b4 {[%clk 0:02:51]}  Na4 {[%clk 0:01:49]} 27. c4 {[%clk 0:02:50]}  h4 {[%clk 0:01:49]} 28. g4 {[%clk 0:02:50]}  Nb6 {[%clk 0:01:48]} 29. f5 {[%clk 0:02:44]}  Ng5 {[%clk 0:01:44]} 30. Nxb6 {[%clk 0:02:13]}  Bxb6 {[%clk 0:01:45]} 31. Rd7 {[%clk 0:02:13]}  Be3 {[%clk 0:01:39]} 32. e6 {[%clk 0:02:10]}  Bf4+ {[%clk 0:01:35]} 33. Kh1 {[%clk 0:02:10]}  Kf6 {[%clk 0:01:34]} 34. exf7 {[%clk 0:02:08]}  Nxf7 {[%clk 0:01:35]} 35. fxg6 {[%clk 0:02:06]}  Ne5 {[%clk 0:01:31]} 36. Rxb7 {[%clk 0:02:03]}  Rc8 {[%clk 0:01:23]} 37. c5 {[%clk 0:01:33]}  Nxg6 {[%clk 0:01:20]} 38. Rxa7 {[%clk 0:01:31]}  Be5 {[%clk 0:01:20]} 39. Ra6+ {[%clk 0:01:29]}  Kg5 {[%clk 0:01:19]} 40. Rd5 {[%clk 0:01:29]}  Re8 {[%clk 0:01:16]} 41. Rd1 {[%clk 0:01:12]}  Nf4 {[%clk 0:01:16]} 42. Re1 {[%clk 0:01:12]}  Nd3 {[%clk 0:01:13]} 43. Re3 {[%clk 0:01:07]}  Rd8 {[%clk 0:01:11]} 44. Bf1 {[%clk 0:01:00]}  Nf2+ {[%clk 0:01:08]} 45. Kg2 {[%clk 0:01:00]}  Kf4 {[%clk 0:01:09]} 46. Rf3+ {[%clk 0:00:53]}  Ke4 {[%clk 0:01:09]} 47. Rxf2 {[%clk 0:00:53]} 1-0


[Site "https://www.chess.com"]

[Event "Titled Tuesday Blitz February 28 Early 2023"]
[White "Molina, Roberto Junio Brito"]
[Black "Tan, Jun Ying"]
[WhiteFideId "2109450"]
[BlackFideId "5710413"]
[WhiteElo "2376"]
[BlackElo "2089"]
[Result "1-0"]
[Round "11"]
[TimeControl "180+2"]
[Date "2023.02.28"]
[WhiteClock "0:00:20"]
[BlackClock "0:00:18"]

1. e4 {[%clk 0:03:00]}  c5 {[%clk 0:03:00]} 2. Nf3 {[%clk 0:02:56]}  d6 {[%clk 0:03:00]} 3. d4 {[%clk 0:02:55]}  cxd4 {[%clk 0:03:00]} 4. Nxd4 {[%clk 0:02:56]}  Nf6 {[%clk 0:03:01]} 5. Nc3 {[%clk 0:02:56]}  Nc6 {[%clk 0:03:01]} 6. Bg5 {[%clk 0:02:54]}  e6 {[%clk 0:03:00]} 7. Qd2 {[%clk 0:02:52]}  a6 {[%clk 0:03:00]} 8. O-O-O {[%clk 0:02:52]}  h6 {[%clk 0:03:01]} 9. Be3 {[%clk 0:02:45]}  Be7 {[%clk 0:02:57]} 10. Be2 {[%clk 0:02:42]}  Nxd4 {[%clk 0:02:50]} 11. Bxd4 {[%clk 0:02:42]}  b5 {[%clk 0:02:50]} 12. Bd3 {[%clk 0:02:37]}  Bb7 {[%clk 0:02:47]} 13. f3 {[%clk 0:02:36]}  Rc8 {[%clk 0:02:35]} 14. Kb1 {[%clk 0:02:35]}  O-O {[%clk 0:02:22]} 15. g4 {[%clk 0:02:33]}  b4 {[%clk 0:02:12]} 16. Ne2 {[%clk 0:02:33]}  e5 {[%clk 0:02:02]} 17. Be3 {[%clk 0:02:30]}  d5 {[%clk 0:02:03]} 18. Ng3 {[%clk 0:02:17]}  dxe4 {[%clk 0:01:48]} 19. Nxe4 {[%clk 0:02:16]}  Nxe4 {[%clk 0:01:47]} 20. fxe4 {[%clk 0:02:15]}  Bg5 {[%clk 0:01:41]} 21. Bxg5 {[%clk 0:02:09]}  Qxg5 {[%clk 0:01:42]} 22. Qxb4 {[%clk 0:02:08]}  Rb8 {[%clk 0:01:38]} 23. Qd2 {[%clk 0:02:06]}  Qxg4 {[%clk 0:01:18]} 24. Rhg1 {[%clk 0:02:03]}  Qf4 {[%clk 0:01:17]} 25. Qg2 {[%clk 0:02:02]}  g6 {[%clk 0:01:06]} 26. Rdf1 {[%clk 0:01:58]}  Qh4 {[%clk 0:01:02]} 27. Rxf7 {[%clk 0:01:12]}  Kxf7 {[%clk 0:01:01]} 28. Qxg6+ {[%clk 0:01:11]}  Ke7 {[%clk 0:01:02]} 29. Qg7+ {[%clk 0:01:11]}  Ke8 {[%clk 0:00:51]} 30. Qxe5+ {[%clk 0:01:07]}  Qe7 {[%clk 0:00:26]} 31. Qxb8+ {[%clk 0:01:05]}  Kf7 {[%clk 0:00:19]} 32. Bc4+ {[%clk 0:00:59]}  Kf6 {[%clk 0:00:18]} 33. Qf4# {[%clk 0:00:20]} 1-0


[Site "https://www.chess.com"]

[Event "Titled Tuesday Blitz February 28 Early 2023"]
[White "Kilic, Eray"]
[Black "Arabidze, Meri"]
[WhiteFideId "44517173"]
[BlackFideId "13604040"]
[WhiteElo "2328"]
[BlackElo "2405"]
[Result "1-0"]
[Round "11"]
[TimeControl "180+2"]
[Date "2023.02.28"]
[WhiteClock "0:00:25"]
[BlackClock "0:00:07"]

1. d4 {[%clk 0:03:00]}  Nf6 {[%clk 0:02:59]} 2. Nc3 {[%clk 0:03:01]}  d5 {[%clk 0:02:51]} 3. Bf4 {[%clk 0:02:59]}  a6 {[%clk 0:02:51]} 4. e3 {[%clk 0:02:58]}  e6 {[%clk 0:02:51]} 5. g4 {[%clk 0:02:55]}  Bd6 {[%clk 0:02:51]} 6. g5 {[%clk 0:02:52]}  Nfd7 {[%clk 0:02:49]} 7. Qg4 {[%clk 0:02:50]}  Nb6 {[%clk 0:02:45]} 8. Qg3 {[%clk 0:02:43]}  Nc6 {[%clk 0:02:37]} 9. Nf3 {[%clk 0:02:37]}  Bxf4 {[%clk 0:02:34]} 10. Qxf4 {[%clk 0:02:36]}  Qd6 {[%clk 0:02:30]} 11. Qh4 {[%clk 0:02:12]}  Ne7 {[%clk 0:02:18]} 12. Bd3 {[%clk 0:02:09]}  Nd7 {[%clk 0:02:02]} 13. O-O-O {[%clk 0:02:06]}  c5 {[%clk 0:02:01]} 14. e4 {[%clk 0:01:56]}  c4 {[%clk 0:01:56]} 15. Be2 {[%clk 0:01:55]}  b5 {[%clk 0:01:55]} 16. exd5 {[%clk 0:01:54]}  exd5 {[%clk 0:01:52]} 17. Ne5 {[%clk 0:01:50]}  O-O {[%clk 0:01:40]} 18. f4 {[%clk 0:01:47]}  Nf5 {[%clk 0:01:29]} 19. Qf2 {[%clk 0:01:44]}  Nb6 {[%clk 0:01:26]} 20. Bf3 {[%clk 0:01:39]}  b4 {[%clk 0:01:26]} 21. Ne2 {[%clk 0:01:39]}  c3 {[%clk 0:01:21]} 22. b3 {[%clk 0:01:38]}  a5 {[%clk 0:01:18]} 23. a4 {[%clk 0:01:00]}  bxa3 {[%clk 0:01:18]} 24. Kb1 {[%clk 0:01:00]}  a4 {[%clk 0:01:16]} 25. Ka2 {[%clk 0:01:00]}  axb3+ {[%clk 0:01:12]} 26. cxb3 {[%clk 0:01:01]}  Be6 {[%clk 0:00:55]} 27. Nxc3 {[%clk 0:00:59]}  Qb4 {[%clk 0:00:52]} 28. Rd3 {[%clk 0:00:57]}  Rfc8 {[%clk 0:00:38]} 29. Rc1 {[%clk 0:00:56]}  Nd6 {[%clk 0:00:31]} 30. f5 {[%clk 0:00:40]}  Bxf5 {[%clk 0:00:29]} 31. Re3 {[%clk 0:00:35]}  Qxd4 {[%clk 0:00:16]} 32. Nc6 {[%clk 0:00:33]}  Qf4 {[%clk 0:00:06]} 33. Ne7+ {[%clk 0:00:29]}  Kh8 {[%clk 0:00:07]} 34. Nxc8 {[%clk 0:00:25]}  Rxc8 {[%clk 0:00:07]} 35. Ne2 {[%clk 0:00:25]} 1-0


[Site "https://www.chess.com"]